[Event "AUT-ch U14 Boys 2022"]
[Site "Sankt Veit an der Glan"]
[Date "2022.04.10"]
[Round "2"]
[White "Haselsberger, Armin"]
[Black "Jetzl, Julian"]
[Result "1/2-1/2"]
[ECO "D77"]
[WhiteElo "1541"]
[BlackElo "1868"]
[Annotator "NA RC"]
[PlyCount "156"]
[EventDate "2022.04.11"]
[EventType "swiss"]
[EventCountry "AUT"]
[SourceTitle "playchess.com"]
[Source "ChessBase"]
[SourceQuality "1"]
[TimeControl "5400+30"]

1. d4 {[%emt 0:00:16]} Nf6 {[%emt 0:00:08]} 2. Nf3 {[%emt 0:00:40]} d5 {[%emt 0:05:46]} 3. c4 {[%emt 0:01:27]} e6 {[%emt 0:02:01]} 4. g3 {[%emt 0:01:56]} g6 {[%emt 0:02:10]} 5. Bg2 {[%emt 0:01:24]} Bg7 {[%emt 0:00:22]} 6. O-O {[%emt 0:00:57]} O-O {[%emt 0:00:49]} 7. Qc2 {[%emt 0:01:26]} Nbd7 {[%emt 0:03:51]} 8. Re1 {[%emt 0:04:36]} Ne4 {[%emt 0:14:54]} 9. Nbd2 {[%emt 0:15:28]} Ndf6 {[%emt 0:07:45]} 10. Ne5 {[%emt 0:11:05]} Nd6 {[%emt 0:06:12]} 11. e3 {[%emt 0:08:05]} c6 {[%emt 0:04:13]} 12. b3 {[%emt 0:02:58]} Nd7 {[%emt 0:04:25]} 13. Nxd7 {[%emt 0:08:44]} Qxd7 {[%emt 0:01:07]} 14. Bb2 {[%emt 0:00:34]} Nf5 {[%emt 0:05:15]} 15. Rad1 {[%emt 0:02:57]} Rd8 {[%emt 0:02:49]} 16. Nf3 {[%emt 0:09:32]} Qc7 {[%emt 0:10:24]} 17. h3 {[%emt 0:05:20]} Rb8 {[%emt 0:04:02]} 18. Nh2 {[%emt 0:05:47]} b6 {[%emt 0:01:45]} 19. cxd5 {[%emt 0:01:53]} exd5 {[%emt 0:00:25]} 20. Rc1 {[%emt 0:00:57]} Bb7 {[%emt 0:01:24]} 21. b4 {[%emt 0:01:50]} Qd7 {[%emt 0:04:47]} 22. Nf3 {[%emt 0:02:05]} Rbc8 {[%emt 0:02:50]} 23. Qd2 {[%emt 0:00:57]} Nd6 {[%emt 0:00:56]} 24. Bf1 {[%emt 0:03:12]} Qe7 {[%emt 0:06:01]} 25. a3 {[%emt 0:01:12]} Ne4 {[%emt 0:00:18]} 26. Qc2 {[%emt 0:00:12]} Qf6 {[%emt 0:01:42]} 27. Bg2 {[%emt 0:00:34]} c5 {[%emt 0:00:37]} 28. bxc5 {[%emt 0:01:23]} bxc5 {[%emt 0:00:20]} 29. Qa4 {[%emt 0:01:22]} a6 {[%emt 0:01:20]} 30. Ba1 {[%emt 0:00:58]} c4 {[%emt 0:00:28]} 31. Qc2 {[%emt 0:00:45]} Qd6 {[%emt 0:00:27]} 32. a4 {[%emt 0:01:29]} a5 {[%emt 0:01:51]} 33. Rb1 {[%emt 0:00:42]} Bc6 {[%emt 0:01:34]} 34. Ne5 {[%emt 0:01:41]} f5 {[%emt 0:01:12]} 35. Nxc6 {[%emt 0:01:09]} Qxc6 {[%emt 0:00:42]} 36. Bxe4 {[%emt 0:01:03]} fxe4 {[%emt 0:01:38]} 37. Rb5 {[%emt 0:00:23]} Bf8 {[%emt 0:00:41]} 38. Bc3 {[%emt 0:00:19]} Ra8 {[%emt 0:00:23]} 39. Reb1 {[%emt 0:00:27]} Rd7 {[%emt 0:01:39]} 40. Bxa5 {[%emt 0:00:52]} Qe6 {[%emt 0:00:35]} 41. Kh2 {[%emt 0:00:06]} Rda7 {[%emt 0:00:29]} 42. Bb4 {[%emt 0:00:34]} Rxa4 {[%emt 0:00:14]} 43. Bxf8 {[%emt 0:00:06]} Kxf8 {[%emt 0:00:04]} 44. Rb8+ {[%emt 0:00:11]} Kg7 {[%emt 0:00:06]} 45. R8b6 {[%emt 0:01:05]} Qf5 {[%emt 0:00:17]} 46. Rb7+ {[%emt 0:00:45]} Kh6 {[%emt 0:00:07]} 47. R7b2 {[%emt 0:01:24]} R4a6 {[%emt 0:01:14]} 48. Rb6 {[%emt 0:00:38]} Ra2 {[%emt 0:00:59]} 49. R6b2 {[%emt 0:00:07]} R2a3 {[%emt 0:00:24]} 50. Qe2 {[%emt 0:00:55]} Rd3 {[%emt 0:00:27]} 51. h4 {[%emt 0:00:31]} Qf6 {[%emt 0:01:03]} 52. Kh3 {[%emt 0:00:29]} Ra6 {[%emt 0:00:27]} 53. g4 {[%emt 0:00:38]} g5 {[%emt 0:00:27]} 54. hxg5+ {[%emt 0:00:16]} Kxg5 {[%emt 0:00:06]} 55. Rb5 {[%emt 0:00:27]} Rd6 {[%emt 0:00:20]} 56. Rb8 {[%emt 0:00:08]} Qh6+ {[%emt 0:01:14]} 57. Kg2 {[%emt 0:00:12]} Qe6 {[%emt 0:00:35]} 58. Rh8 {[%emt 0:00:37]} Rd7 {[%emt 0:00:06]} 59. Rh1 {[%emt 0:00:07]} Qxg4+ {[%emt 0:00:39]} 60. Qxg4+ {[%emt 0:00:10]} Kxg4 {[%emt 0:00:10]} 61. R8xh7 {[%emt 0:00:10]} Rxh7 {[%emt 0:00:34]} 62. Rxh7 {[%emt 0:00:04]} Ra3 {[%emt 0:00:14]} 63. Rc7 {[%emt 0:00:51]} Ra5 {[%emt 0:00:22]} 64. Rc8 {[%emt 0:00:47]} Kh4 {[%emt 0:00:53]} 65. Rh8+ {[%emt 0:01:17]} Kg4 {[%emt 0:00:09]} 66. Rg8+ {[%emt 0:00:02]} Kf5 {[%emt 0:00:04]} 67. Re8 {[%emt 0:00:53]} Rb5 {[%emt 0:00:18]} 68. f3 {[%emt 0:01:03]} exf3+ {[%emt 0:02:03]} 69. Kxf3 {[%emt 0:00:07]} Kf6 {[%emt 0:00:31]} 70. Kf4 {[%emt 0:00:53]} Rb7 {[%emt 0:00:29]} 71. Rc8 {[%emt 0:00:27]} Re7 {[%emt 0:00:29]} 72. Rc5 {[%emt 0:00:31]} Ke6 {[%emt 0:00:26]} 73. e4 {[%emt 0:00:43]} dxe4 {[%emt 0:00:31]} 74. Re5+ {[%emt 0:00:59]} Kd6 {[%emt 0:00:10]} 75. Kxe4 {[%emt 0:00:27]} Rxe5+ {[%emt 0:00:27]} 76. dxe5+ {[%emt 0:00:09]} Ke6 {[%emt 0:00:06]} 77. Kd4 {[%emt 0:00:10]} c3 {[%emt 0:00:04]} 78. Kxc3 {[%emt 0:00:07]} Kxe5 {[%emt 0:00:01]} 1/2-1/2

[Event "AUT-ch U14 Boys 2022"]
[Site "Sankt Veit an der Glan"]
[Date "2022.04.10"]
[Round "2"]
[White "Stadlbauer, Maximilian"]
[Black "Kienboeck, Samuel"]
[Result "1/2-1/2"]
[ECO "C50"]
[WhiteElo "1450"]
[BlackElo "1068"]
[Annotator "NA RC"]
[PlyCount "105"]
[EventDate "2022.04.11"]
[EventType "swiss"]
[EventCountry "AUT"]
[SourceTitle "playchess.com"]
[Source "ChessBase"]
[SourceQuality "1"]
[TimeControl "5400+30"]

1. e4 {[%emt 0:00:04]} e5 {[%emt 0:00:27]} 2. Nf3 {[%emt 0:00:13]} Nc6 {[%emt 0:00:16]} 3. Bc4 {[%emt 0:00:07]} Bc5 {[%emt 0:00:19]} 4. d3 {[%emt 0:00:10]} h6 {[%emt 0:02:34]} 5. Nc3 {[%emt 0:00:14]} Nf6 {[%emt 0:00:05]} 6. O-O {[%emt 0:00:12]} d6 {[%emt 0:00:41]} 7. Na4 {[%emt 0:01:22]} Bb6 {[%emt 0:00:21]} 8. Nxb6 {[%emt 0:00:11]} axb6 {[%emt 0:00:04]} 9. c3 {[%emt 0:01:05]} Na5 {[%emt 0:00:49]} 10. Bb3 {[%emt 0:00:24]} Nxb3 {[%emt 0:00:13]} 11. Qxb3 {[%emt 0:01:07]} Be6 {[%emt 0:00:37]} 12. c4 {[%emt 0:01:35]} O-O {[%emt 0:00:43]} 13. h3 {[%emt 0:00:31]} Nd7 {[%emt 0:03:24]} 14. Be3 {[%emt 0:02:26]} Qe7 {[%emt 0:03:43]} 15. Rfe1 {[%emt 0:02:42]} f5 {[%emt 0:01:38]} 16. exf5 {[%emt 0:04:19]} Bxf5 {[%emt 0:00:22]} 17. Qd1 {[%emt 0:02:30]} Rf7 {[%emt 0:03:36]} 18. Nh2 {[%emt 0:11:14]} Raf8 {[%emt 0:02:37]} 19. Nf1 {[%emt 0:03:25]} c5 {[%emt 0:07:34]} 20. Ng3 {[%emt 0:00:29]} Bg6 {[%emt 0:03:11]} 21. Qg4 {[%emt 0:02:11]} Bxd3 {[%emt 0:07:22]} 22. Rad1 {[%emt 0:08:10]} Nf6 {[%emt 0:11:22]} 23. Qh4 {[%emt 0:00:10]} Bg6 {[%emt 0:07:28]} 24. f4 {[%emt 0:09:54]} Ne8 {[%emt 0:04:22]} 25. Qxe7 {[%emt 0:02:25]} Rxe7 {[%emt 0:00:13]} 26. fxe5 {[%emt 0:00:28]} dxe5 {[%emt 0:02:21]} 27. Bd2 {[%emt 0:06:03]} Nd6 {[%emt 0:06:48]} 28. Bc3 {[%emt 0:00:38]} Nxc4 {[%emt 0:04:12]} 29. b3 {[%emt 0:00:17]} Na5 {[%emt 0:00:12]} 30. Rxe5 {[%emt 0:00:20]} Rxe5 {[%emt 0:02:05]} 31. Bxe5 {[%emt 0:00:06]} Nc6 {[%emt 0:03:49]} 32. Bc7 {[%emt 0:03:38]} b5 {[%emt 0:00:17]} 33. Rd5 {[%emt 0:01:27]} b4 {[%emt 0:02:38]} 34. Rxc5 {[%emt 0:03:32]} Bb1 {[%emt 0:00:13]} 35. Rb5 {[%emt 0:00:19]} Bxa2 {[%emt 0:00:13]} 36. Rxb7 {[%emt 0:00:07]} Bxb3 {[%emt 0:00:42]} 37. Bd6 {[%emt 0:00:27]} Rf7 {[%emt 0:01:27]} 38. Rb6 {[%emt 0:00:18]} Bd5 {[%emt 0:01:15]} 39. Bxb4 {[%emt 0:00:33]} Nxb4 {[%emt 0:00:04]} 40. Rxb4 {[%emt 0:00:10]} Kh7 {[%emt 0:00:27]} 41. Rb2 {[%emt 0:00:13]} g6 {[%emt 0:00:51]} 42. Rd2 {[%emt 0:01:27]} Bb7 {[%emt 0:01:32]} 43. Rf2 {[%emt 0:01:06]} Rxf2 {[%emt 0:00:13]} 44. Kxf2 {[%emt 0:00:08]} h5 {[%emt 0:00:06]} 45. h4 {[%emt 0:00:41]} Kg7 {[%emt 0:00:09]} 46. Ne2 {[%emt 0:00:29]} Kf6 {[%emt 0:00:09]} 47. g3 {[%emt 0:00:20]} Ba6 {[%emt 0:00:40]} 48. Nf4 {[%emt 0:00:19]} Bc4 {[%emt 0:00:19]} 49. Nh3 {[%emt 0:00:16]} Kf5 {[%emt 0:00:15]} 50. Ng5 {[%emt 0:00:28]} Bd5 {[%emt 0:00:57]} 51. Nh3 {[%emt 0:00:09]} Kg4 {[%emt 0:00:00]} 52. Nf4 {[%emt 0:00:12]} Be4 {[%emt 0:00:22]} 53. Ne6 {[%emt 0:00:14]} 1/2-1/2

[Event "AUT-ch U14 Boys 2022"]
[Site "Sankt Veit an der Glan"]
[Date "2022.04.11"]
[Round "3"]
[White "Leitgeb, Julian"]
[Black "Ernst, Robert"]
[Result "1/2-1/2"]
[ECO "B48"]
[WhiteElo "2004"]
[BlackElo "1792"]
[Annotator "NA RC"]
[PlyCount "77"]
[EventDate "2022.04.11"]
[EventType "swiss"]
[EventCountry "AUT"]
[SourceTitle "playchess.com"]
[Source "ChessBase"]
[SourceQuality "1"]
[TimeControl "5400+30"]

1. e4 {[%emt 0:00:03]} c5 {[%emt 0:00:05]} 2. Nf3 {[%emt 0:00:04]} e6 {[%emt 0:00:07]} 3. d4 {[%emt 0:00:03]} cxd4 {[%emt 0:00:08]} 4. Nxd4 {[%emt 0:00:04]} Nc6 {[%emt 0:00:12]} 5. Nc3 {[%emt 0:00:05]} Qc7 {[%emt 0:00:08]} 6. Be3 {[%emt 0:00:09]} a6 {[%emt 0:00:09]} 7. Qf3 {[%emt 0:00:32]} b5 {[%emt 0:15:32]} 8. Nxc6 {[%emt 0:01:05]} dxc6 {[%emt 0:01:13]} 9. Qg3 {[%emt 0:00:10]} Qxg3 {[%emt 0:01:47]} 10. hxg3 {[%emt 0:00:54]} Nf6 {[%emt 0:10:34]} 11. e5 {[%emt 0:00:29]} Nd5 {[%emt 0:00:04]} 12. Nxd5 {[%emt 0:01:50]} exd5 {[%emt 0:00:41]} 13. a4 {[%emt 0:11:00]} b4 {[%emt 0:13:01]} 14. Bd3 {[%emt 0:13:14]} Be6 {[%emt 0:09:33]} 15. c3 {[%emt 0:13:07]} c5 {[%emt 0:09:35]} 16. cxb4 {[%emt 0:00:00]} c4 {[%emt 0:00:00]} 17. Bc2 {[%emt 0:00:00]} Bxb4+ {[%emt 0:00:00]} 18. Ke2 {[%emt 0:00:00]} Rc8 {[%emt 0:14:28]} 19. Bd4 {[%emt 0:10:42]} a5 {[%emt 0:01:44]} 20. b3 {[%emt 0:02:30]} Ke7 {[%emt 0:02:18]} 21. Rhc1 {[%emt 0:05:42]} Rhd8 {[%emt 0:02:48]} 22. Ke3 {[%emt 0:06:40]} h6 {[%emt 0:03:22]} 23. f3 {[%emt 0:06:39]} Rd7 {[%emt 0:03:25]} 24. g4 {[%emt 0:00:00]} Rdc7 {[%emt 0:00:00]} 25. Bd1 {[%emt 0:00:00]} g5 {[%emt 0:03:08]} 26. Rab1 {[%emt 0:04:25]} Be1 {[%emt 0:02:39]} 27. Ke2 {[%emt 0:02:25]} Bg3 {[%emt 0:00:26]} 28. Bb6 {[%emt 0:05:14]} Rb7 {[%emt 0:00:54]} 29. bxc4 {[%emt 0:00:41]} Rcb8 {[%emt 0:01:02]} 30. c5 {[%emt 0:05:09]} Bxe5 {[%emt 0:00:15]} 31. Bc2 {[%emt 0:00:20]} Bd7 {[%emt 0:02:59]} 32. Bd3 {[%emt 0:02:15]} Bxa4 {[%emt 0:00:37]} 33. Ba6 {[%emt 0:00:17]} Bc6 {[%emt 0:03:06]} 34. Bxb7 {[%emt 0:00:36]} Rxb7 {[%emt 0:00:03]} 35. Bxa5 {[%emt 0:00:31]} Bb5+ {[%emt 0:00:54]} 36. Kf2 {[%emt 0:01:06]} Kd7 {[%emt 0:00:07]} 37. Bb6 {[%emt 0:02:17]} Kc6 {[%emt 0:00:10]} 38. Rd1 {[%emt 0:02:01]} Bc4 {[%emt 0:00:50]} 39. g3 {[%emt 0:02:17]} 1/2-1/2

[Event "AUT-ch U14 Boys 2022"]
[Site "Sankt Veit an der Glan"]
[Date "2022.04.11"]
[Round "3"]
[White "Jetzl, Julian"]
[Black "Geroe, Leonhard"]
[Result "0-1"]
[ECO "D43"]
[WhiteElo "1868"]
[BlackElo "1935"]
[Annotator "NA RC"]
[PlyCount "60"]
[EventDate "2022.04.11"]
[EventType "swiss"]
[EventCountry "AUT"]
[SourceTitle "playchess.com"]
[Source "ChessBase"]
[SourceQuality "1"]
[TimeControl "5400+30"]

1. d4 {[%emt 0:00:02]} d5 {[%emt 0:00:05]} 2. c4 {[%emt 0:00:11]} c6 {[%emt 0:00:25]} 3. Nc3 {[%emt 0:00:10]} Nf6 {[%emt 0:00:44]} 4. Nf3 {[%emt 0:00:05]} e6 {[%emt 0:00:05]} 5. Bg5 {[%emt 0:00:20]} h6 {[%emt 0:00:07]} 6. Bh4 {[%emt 0:00:38]} dxc4 {[%emt 0:00:15]} 7. e4 {[%emt 0:00:17]} g5 {[%emt 0:00:08]} 8. Bg3 {[%emt 0:04:39]} b5 {[%emt 0:00:39]} 9. Be2 {[%emt 0:04:50]} Nbd7 {[%emt 0:05:12]} 10. Qc2 {[%emt 0:10:50]} Bb7 {[%emt 0:04:25]} 11. Rd1 {[%emt 0:13:24]} a6 {[%emt 0:09:59]} 12. O-O {[%emt 0:13:48]} Bg7 {[%emt 0:05:58]} 13. h4 {[%emt 0:06:22]} Nh5 {[%emt 0:00:30]} 14. Be5 {[%emt 0:13:23]} Kf8 {[%emt 0:34:18]} 15. Bd6+ {[%emt 0:06:05]} Kg8 {[%emt 0:01:13]} 16. Ne5 {[%emt 0:01:31]} Nf4 {[%emt 0:06:09]} 17. Nxd7 {[%emt 0:01:35]} Qxd7 {[%emt 0:06:42]} 18. Bxf4 {[%emt 0:01:08]} gxf4 {[%emt 0:00:25]} 19. e5 {[%emt 0:00:56]} c5 {[%emt 0:01:31]} 20. Qd2 {[%emt 0:06:26]} f3 {[%emt 0:07:31]} 21. Bxf3 {[%emt 0:02:42]} Bxf3 {[%emt 0:00:13]} 22. gxf3 {[%emt 0:00:24]} Rd8 {[%emt 0:01:13]} 23. Qf4 {[%emt 0:07:09]} cxd4 {[%emt 0:00:32]} 24. Ne4 {[%emt 0:00:05]} Kf8 {[%emt 0:06:33]} 25. Nd6 {[%emt 0:00:59]} Bxe5 {[%emt 0:00:32]} 26. Qxe5 {[%emt 0:01:18]} Rg8+ {[%emt 0:00:06]} 27. Kh1 {[%emt 0:00:27]} Qxd6 {[%emt 0:00:05]} 28. Qh5 {[%emt 0:00:02]} Qf4 {[%emt 0:01:40]} 29. Rfe1 {[%emt 0:02:03]} Rd5 {[%emt 0:01:02]} 30. Re4 {[%emt 0:01:19]} Qf6 {[%emt 0:00:17]} 0-1

[Event "AUT-ch U14 Boys 2022"]
[Site "Sankt Veit an der Glan"]
[Date "2022.04.11"]
[Round "3"]
[White "Radnaev, Nomin"]
[Black "Schwarz, Felix"]
[Result "1/2-1/2"]
[ECO "A37"]
[WhiteElo "1766"]
[BlackElo "1831"]
[Annotator "NA RC"]
[PlyCount "85"]
[EventDate "2022.04.11"]
[EventType "swiss"]
[EventCountry "AUT"]
[SourceTitle "playchess.com"]
[Source "ChessBase"]
[SourceQuality "1"]
[TimeControl "5400+30"]

1. c4 {[%emt 0:00:02]} c5 {[%emt 0:00:17]} 2. Nf3 {[%emt 0:00:23]} Nc6 {[%emt 0:00:23]} 3. Nc3 {[%emt 0:03:24]} g6 {[%emt 0:00:25]} 4. g3 {[%emt 0:00:53]} Bg7 {[%emt 0:00:07]} 5. Bg2 {[%emt 0:00:10]} d6 {[%emt 0:00:14]} 6. O-O {[%emt 0:00:53]} Bf5 {[%emt 0:00:07]} 7. d3 {[%emt 0:01:13]} Qd7 {[%emt 0:01:26]} 8. e4 {[%emt 0:12:08]} Bg4 {[%emt 0:00:39]} 9. Nd5 {[%emt 0:02:05]} Nd4 {[%emt 0:03:57]} 10. Rb1 {[%emt 0:02:41]} e6 {[%emt 0:03:15]} 11. Ne3 {[%emt 0:00:49]} Nxf3+ {[%emt 0:00:24]} 12. Bxf3 {[%emt 0:00:07]} Bxf3 {[%emt 0:00:04]} 13. Qxf3 {[%emt 0:00:06]} a5 {[%emt 0:00:28]} 14. Bd2 {[%emt 0:01:03]} Ne7 {[%emt 0:01:01]} 15. Bc3 {[%emt 0:00:18]} O-O {[%emt 0:01:46]} 16. Rbd1 {[%emt 0:12:11]} Nc6 {[%emt 0:01:53]} 17. Bxg7 {[%emt 0:01:14]} Kxg7 {[%emt 0:00:57]} 18. h4 {[%emt 0:00:56]} h5 {[%emt 0:00:28]} 19. g4 {[%emt 0:01:01]} Nd4 {[%emt 0:01:55]} 20. Qg2 {[%emt 0:04:08]} Qe7 {[%emt 0:01:03]} 21. g5 {[%emt 0:02:08]} f6 {[%emt 0:01:40]} 22. f4 {[%emt 0:01:04]} fxg5 {[%emt 0:04:13]} 23. fxg5 {[%emt 0:01:37]} Rxf1+ {[%emt 0:01:05]} 24. Rxf1 {[%emt 0:00:08]} Rf8 {[%emt 0:00:11]} 25. Rf2 {[%emt 0:05:58]} Rxf2 {[%emt 0:02:35]} 26. Qxf2 {[%emt 0:00:04]} Qf7 {[%emt 0:00:03]} 27. Qxf7+ {[%emt 0:00:19]} Kxf7 {[%emt 0:01:12]} 28. Kf2 {[%emt 0:00:01]} Nc6 {[%emt 0:00:15]} 29. Ke2 {[%emt 0:01:56]} Nd4+ {[%emt 0:00:51]} 30. Kf2 {[%emt 0:00:05]} Nc6 {[%emt 0:00:05]} 31. Nc2 {[%emt 0:00:25]} Nb4 {[%emt 0:05:26]} 32. Nxb4 {[%emt 0:00:07]} axb4 {[%emt 0:00:00]} 33. Ke3 {[%emt 0:05:54]} e5 {[%emt 0:00:14]} 34. Kd2 {[%emt 0:00:33]} Ke7 {[%emt 0:00:05]} 35. Kc2 {[%emt 0:00:16]} Kd7 {[%emt 0:00:09]} 36. Kb3 {[%emt 0:00:47]} Kc6 {[%emt 0:00:36]} 37. a3 {[%emt 0:01:37]} bxa3 {[%emt 0:00:06]} 38. Kxa3 {[%emt 0:00:06]} Kb6 {[%emt 0:00:35]} 39. Ka4 {[%emt 0:03:19]} Ka6 {[%emt 0:00:08]} 40. Ka3 {[%emt 0:02:23]} Ka5 {[%emt 0:00:55]} 41. Kb3 {[%emt 0:00:16]} Ka6 {[%emt 0:00:10]} 42. Ka4 {[%emt 0:00:06]} Kb6 {[%emt 0:00:14]} 43. Kb3 {[%emt 0:00:27]} 1/2-1/2

[Event "AUT-ch U14 Boys 2022"]
[Site "Sankt Veit an der Glan"]
[Date "2022.04.11"]
[Round "3"]
[White "Wimmer, Michael"]
[Black "Nguyen, Le Minh Phu"]
[Result "1-0"]
[ECO "B55"]
[WhiteElo "1753"]
[BlackElo "2080"]
[Annotator "NA RC"]
[PlyCount "101"]
[EventDate "2022.04.11"]
[EventType "swiss"]
[EventCountry "AUT"]
[SourceTitle "playchess.com"]
[Source "ChessBase"]
[SourceQuality "1"]
[TimeControl "5400+30"]

1. e4 {[%emt 0:00:05]} c5 {[%emt 0:00:04]} 2. Nf3 {[%emt 0:00:14]} d6 {[%emt 0:00:15]} 3. d4 {[%emt 0:00:16]} cxd4 {[%emt 0:00:06]} 4. Nxd4 {[%emt 0:00:16]} e5 {[%emt 0:00:07]} 5. Nb3 {[%emt 0:01:14]} Nf6 {[%emt 0:00:06]} 6. f3 {[%emt 0:00:29]} d5 {[%emt 0:01:42]} 7. Bg5 {[%emt 0:00:20]} d4 {[%emt 0:00:36]} 8. c3 {[%emt 0:00:16]} Nc6 {[%emt 0:01:01]} 9. Bb5 {[%emt 0:00:26]} Be6 {[%emt 0:02:08]} 10. cxd4 {[%emt 0:07:11]} Bxb3 {[%emt 0:00:16]} 11. Qxb3 {[%emt 0:01:22]} Qxd4 {[%emt 0:00:13]} 12. Be3 {[%emt 0:02:00]} Bb4+ {[%emt 0:03:22]} 13. Kf2 {[%emt 0:05:14]} Nxe4+ {[%emt 0:03:00]} 14. fxe4 {[%emt 0:06:11]} Qxe4 {[%emt 0:00:11]} 15. Bd3 {[%emt 0:06:39]} Qh4+ {[%emt 0:01:24]} 16. g3 {[%emt 0:01:11]} Qg4 {[%emt 0:01:49]} 17. a3 {[%emt 0:10:53]} Nd4 {[%emt 0:29:58]} 18. Qa4+ {[%emt 0:09:22]} Kd8 {[%emt 0:00:19]} 19. Qd1 {[%emt 0:02:00]} Qxd1 {[%emt 0:00:50]} 20. Rxd1 {[%emt 0:00:08]} Bc5 {[%emt 0:00:05]} 21. Nc3 {[%emt 0:03:18]} a6 {[%emt 0:02:02]} 22. Ne2 {[%emt 0:04:12]} Ke7 {[%emt 0:03:09]} 23. b4 {[%emt 0:02:22]} Ba7 {[%emt 0:01:30]} 24. Be4 {[%emt 0:01:59]} Nc6 {[%emt 0:08:50]} 25. Bxa7 {[%emt 0:02:54]} Rxa7 {[%emt 0:00:06]} 26. Rac1 {[%emt 0:02:01]} Rc8 {[%emt 0:00:29]} 27. Rc5 {[%emt 0:02:33]} f6 {[%emt 0:14:10]} 28. Nc3 {[%emt 0:02:55]} Ke6 {[%emt 0:03:22]} 29. Na4 {[%emt 0:07:04]} g6 {[%emt 0:04:48]} 30. Nb6 {[%emt 0:01:53]} Rc7 {[%emt 0:01:36]} 31. a4 {[%emt 0:01:22]} f5 {[%emt 0:10:00]} 32. Bd5+ {[%emt 0:01:07]} Ke7 {[%emt 0:00:51]} 33. Rc3 {[%emt 0:02:41]} Kf6 {[%emt 0:05:17]} 34. b5 {[%emt 0:00:37]} axb5 {[%emt 0:00:07]} 35. axb5 {[%emt 0:00:08]} Kg5 {[%emt 0:00:11]} 36. bxc6 {[%emt 0:00:58]} bxc6 {[%emt 0:00:07]} 37. h4+ {[%emt 0:00:44]} Kh5 {[%emt 0:00:27]} 38. Bxc6 {[%emt 0:00:48]} Ra2+ {[%emt 0:00:34]} 39. Ke3 {[%emt 0:02:20]} e4 {[%emt 0:02:47]} 40. Nd5 {[%emt 0:01:51]} Rca7 {[%emt 0:00:14]} 41. Nf6+ {[%emt 0:01:40]} Kh6 {[%emt 0:00:07]} 42. Rd7 {[%emt 0:02:13]} Rxd7 {[%emt 0:00:14]} 43. Nxd7 {[%emt 0:01:01]} Rg2 {[%emt 0:00:33]} 44. Kf4 {[%emt 0:00:40]} Rf2+ {[%emt 0:00:17]} 45. Ke5 {[%emt 0:00:10]} g5 {[%emt 0:00:14]} 46. Nf6 {[%emt 0:01:07]} gxh4 {[%emt 0:02:18]} 47. Bxe4 {[%emt 0:01:51]} Kg5 {[%emt 0:01:20]} 48. gxh4+ {[%emt 0:00:44]} Kxh4 {[%emt 0:00:10]} 49. Bxf5 {[%emt 0:00:38]} Rh2 {[%emt 0:00:45]} 50. Rf3 {[%emt 0:01:22]} h5 {[%emt 0:00:27]} 51. Ne4 {[%emt 0:00:48]} 1-0

[Event "AUT-ch U14 Boys 2022"]
[Site "Sankt Veit an der Glan"]
[Date "2022.04.11"]
[Round "3"]
[White "Gruenwald, Simon"]
[Black "Haselsberger, Armin"]
[Result "1/2-1/2"]
[ECO "B19"]
[WhiteElo "1584"]
[BlackElo "1541"]
[Annotator "NA RC"]
[PlyCount "85"]
[EventDate "2022.04.11"]
[EventType "swiss"]
[EventCountry "AUT"]
[SourceTitle "playchess.com"]
[Source "ChessBase"]
[SourceQuality "1"]
[TimeControl "5400+30"]

1. e4 {[%emt 0:00:50]} c6 {[%emt 0:00:43]} 2. d4 {[%emt 0:00:44]} d5 {[%emt 0:00:37]} 3. Nc3 {[%emt 0:00:16]} dxe4 {[%emt 0:01:10]} 4. Nxe4 {[%emt 0:00:06]} Bf5 {[%emt 0:00:48]} 5. Ng3 {[%emt 0:00:08]} Bg6 {[%emt 0:00:47]} 6. Nf3 {[%emt 0:00:15]} Nd7 {[%emt 0:00:53]} 7. h4 {[%emt 0:00:04]} h6 {[%emt 0:00:25]} 8. h5 {[%emt 0:00:03]} Bh7 {[%emt 0:00:06]} 9. Bd3 {[%emt 0:00:02]} Bxd3 {[%emt 0:00:14]} 10. Qxd3 {[%emt 0:00:02]} e6 {[%emt 0:00:17]} 11. Bd2 {[%emt 0:00:09]} Ngf6 {[%emt 0:01:12]} 12. O-O-O {[%emt 0:00:20]} Qc7 {[%emt 0:05:33]} 13. Ne4 {[%emt 0:02:04]} Ng4 {[%emt 0:04:39]} 14. Qe2 {[%emt 0:01:51]} Be7 {[%emt 0:02:35]} 15. Nh4 {[%emt 0:04:38]} Ngf6 {[%emt 0:15:11]} 16. g4 {[%emt 0:06:28]} Nxe4 {[%emt 0:13:46]} 17. Qxe4 {[%emt 0:00:15]} c5 {[%emt 0:11:21]} 18. Bc3 {[%emt 0:13:27]} Nf6 {[%emt 0:05:31]} 19. Qf3 {[%emt 0:05:57]} Nd5 {[%emt 0:01:55]} 20. dxc5 {[%emt 0:09:37]} Nxc3 {[%emt 0:01:41]} 21. Qxc3 {[%emt 0:01:49]} O-O {[%emt 0:02:27]} 22. Qg3 {[%emt 0:12:48]} Qxg3 {[%emt 0:08:13]} 23. fxg3 {[%emt 0:00:01]} Rfd8 {[%emt 0:00:10]} 24. Nf3 {[%emt 0:15:26]} Bxc5 {[%emt 0:01:28]} 25. Nd2 {[%emt 0:02:30]} Be3 {[%emt 0:02:01]} 26. c3 {[%emt 0:06:23]} Rd5 {[%emt 0:04:51]} 27. Kc2 {[%emt 0:00:36]} Rad8 {[%emt 0:00:33]} 28. Ne4 {[%emt 0:01:04]} Kf8 {[%emt 0:09:07]} 29. Rxd5 {[%emt 0:01:33]} Rxd5 {[%emt 0:00:31]} 30. Rd1 {[%emt 0:00:31]} Rxd1 {[%emt 0:02:42]} 31. Kxd1 {[%emt 0:00:02]} Ke7 {[%emt 0:00:12]} 32. Ke2 {[%emt 0:01:00]} Bb6 {[%emt 0:01:32]} 33. g5 {[%emt 0:06:26]} hxg5 {[%emt 0:01:57]} 34. Nxg5 {[%emt 0:00:01]} Bc7 {[%emt 0:00:57]} 35. Kf3 {[%emt 0:00:33]} f5 {[%emt 0:00:39]} 36. g4 {[%emt 0:03:43]} a6 {[%emt 0:00:56]} 37. Nh3 {[%emt 0:00:38]} Kf7 {[%emt 0:00:18]} 38. g5 {[%emt 0:00:53]} e5 {[%emt 0:00:21]} 39. Ke3 {[%emt 0:00:34]} Ke6 {[%emt 0:00:39]} 40. h6 {[%emt 0:01:55]} gxh6 {[%emt 0:00:15]} 41. gxh6 {[%emt 0:00:02]} Bd8 {[%emt 0:00:42]} 42. h7 {[%emt 0:01:43]} Bf6 {[%emt 0:00:06]} 43. Kd3 {[%emt 0:00:47]} 1/2-1/2

[Event "AUT-ch U14 Boys 2022"]
[Site "Sankt Veit an der Glan"]
[Date "2022.04.11"]
[Round "3"]
[White "Gan-Erdene, Ganbat"]
[Black "Stadlbauer, Maximilian"]
[Result "1-0"]
[ECO "C25"]
[WhiteElo "1526"]
[BlackElo "1450"]
[Annotator "NA RC"]
[PlyCount "49"]
[EventDate "2022.04.11"]
[EventType "swiss"]
[EventCountry "AUT"]
[SourceTitle "playchess.com"]
[Source "ChessBase"]
[SourceQuality "1"]
[TimeControl "5400+30"]

1. e4 {[%emt 0:00:03]} e5 {[%emt 0:00:09]} 2. Nc3 {[%emt 0:00:08]} Bc5 {[%emt 0:00:26]} 3. Bc4 {[%emt 0:00:17]} Nc6 {[%emt 0:00:25]} 4. Qg4 {[%emt 0:00:37]} g6 {[%emt 0:01:41]} 5. Qf3 {[%emt 0:05:56]} Nf6 {[%emt 0:00:29]} 6. Nge2 {[%emt 0:00:45]} O-O {[%emt 0:01:42]} 7. d3 {[%emt 0:00:28]} Be7 {[%emt 0:02:21]} 8. Bh6 {[%emt 0:08:34]} Re8 {[%emt 0:01:10]} 9. g4 {[%emt 0:03:10]} Bf8 {[%emt 0:08:13]} 10. Bg5 {[%emt 0:02:45]} Be7 {[%emt 0:00:48]} 11. Bxf6 {[%emt 0:00:42]} Bxf6 {[%emt 0:00:31]} 12. g5 {[%emt 0:01:42]} Bxg5 {[%emt 0:01:26]} 13. Bxf7+ {[%emt 0:00:35]} Kh8 {[%emt 0:00:10]} 14. Bxe8 {[%emt 0:00:16]} Qxe8 {[%emt 0:00:06]} 15. Qg3 {[%emt 0:06:26]} Bh6 {[%emt 0:00:31]} 16. Nd5 {[%emt 0:02:48]} Qd8 {[%emt 0:00:58]} 17. c3 {[%emt 0:01:29]} d6 {[%emt 0:00:40]} 18. f4 {[%emt 0:04:23]} Be6 {[%emt 0:02:01]} 19. O-O {[%emt 0:13:18]} Bxd5 {[%emt 0:03:05]} 20. exd5 {[%emt 0:00:23]} exf4 {[%emt 0:00:10]} 21. Nxf4 {[%emt 0:00:27]} Ne7 {[%emt 0:00:25]} 22. Ne6 {[%emt 0:01:34]} Qd7 {[%emt 0:01:06]} 23. c4 {[%emt 0:01:09]} c6 {[%emt 0:00:28]} 24. Rf7 {[%emt 0:05:43]} Re8 {[%emt 0:01:51]} 25. Qh3 {[%emt 0:01:37]} 1-0